[Event "*** Titled Tuesday 3|2 Blitz"]
[Site "Chess.com"]
[Date "2015.02.24"]
[Round "2"]
[White "SuPeR_Fm"]
[Black "GMHess"]
[Result "0-1"]
[WhiteElo "2343"]
[BlackElo "2493"]
[TimeControl "180+2"]
[EndTime "11:24:34 PST"]
[Termination "GMHess won by resignation"]

1. d4 {[%clk 0:02:50.5]} 1... g6 {[%clk 0:02:56.6]} 2. c4 {[%clk 0:02:47.8]}
2... Bg7 {[%clk 0:02:57.2]} 3. Nf3 {[%clk 0:02:49]} 3... d6 {[%clk 0:02:57.4]}
4. Nc3 {[%clk 0:02:49.6]} 4... c5 {[%clk 0:02:58.5]} 5. e3 {[%clk 0:02:46.2]}
5... cxd4 {[%clk 0:02:56.4]} 6. Nxd4 {[%clk 0:02:48.1]} 6... Nf6 {[%clk
0:02:57.1]} 7. Be2 {[%clk 0:02:48.9]} 7... O-O {[%clk 0:02:58.4]} 8. O-O {[%clk
0:02:50.5]} 8... Nc6 {[%clk 0:02:59]} 9. Nxc6 {[%clk 0:02:49.8]} 9... bxc6
{[%clk 0:02:59.8]} 10. Qc2 {[%clk 0:02:41.2]} 10... Rb8 {[%clk 0:02:55.7]} 11.
b3 {[%clk 0:02:28.3]} 11... Bf5 {[%clk 0:02:56]} 12. Bd3 {[%clk 0:02:28.4]}
12... Bxd3 {[%clk 0:02:56.1]} 13. Qxd3 {[%clk 0:02:30.3]} 13... d5 {[%clk
0:02:54.8]} 14. Bb2 {[%clk 0:02:23.5]} 14... Qd6 {[%clk 0:02:42]} 15. Rfd1
{[%clk 0:02:19.8]} 15... Ng4 {[%clk 0:02:41.5]} 16. g3 {[%clk 0:02:12]} 16...
Qe5 {[%clk 0:02:27.4]} 17. Na4 {[%clk 0:02:07.6]} 17... Qh5 {[%clk 0:02:24.3]}
18. h4 {[%clk 0:02:02.6]} 18... Ne5 {[%clk 0:02:10.6]} 19. Bxe5 {[%clk
0:02:02.1]} 19... Bxe5 {[%clk 0:02:10.9]} 20. Rac1 {[%clk 0:02:04]} 20... e6
{[%clk 0:02:05]} 21. e4 {[%clk 0:01:49.9]} 21... d4 {[%clk 0:01:30.6]} 22. f4
{[%clk 0:01:48.6]} 22... Bxf4 {[%clk 0:01:17]} 23. gxf4 {[%clk 0:01:47.6]} 23...
Qg4+ {[%clk 0:01:16.4]} 24. Kf2 {[%clk 0:01:42.4]} 24... Qxf4+ {[%clk
0:01:15.2]} 25. Ke2 {[%clk 0:01:43.9]} 25... Qh2+ {[%clk 0:01:12.8]} 26. Ke1
{[%clk 0:01:42.9]} 26... Qxh4+ {[%clk 0:01:07.3]} 27. Kd2 {[%clk 0:01:43.1]}
27... f5 {[%clk 0:00:59.6]} 28. Nc5 {[%clk 0:01:30.1]} 28... e5 {[%clk
0:00:51.5]} 29. Rh1 {[%clk 0:01:21.2]} 29... Qe7 {[%clk 0:00:52.4]} 30. Na4
{[%clk 0:01:18.1]} 30... fxe4 {[%clk 0:00:45]} 31. Qxe4 {[%clk 0:01:17.3]} 31...
Rf2+ {[%clk 0:00:46.5]} 32. Kd3 {[%clk 0:00:56.2]} 32... Rbf8 {[%clk 0:00:45]}
33. Rh3 {[%clk 0:00:46.5]} 33... Qe6 {[%clk 0:00:17.5]} 34. Rch1 {[%clk
0:00:45.8]} 34... R8f4 {[%clk 0:00:18.3]} 35. Nc5 {[%clk 0:00:23.1]} 35... Qg4
{[%clk 0:00:07.6]} 36. Qxe5 {[%clk 0:00:18.1]} 36... R4f3+ {[%clk 0:00:04.1]}
37. Rxf3 {[%clk 0:00:17.3]} 37... Qxf3+ {[%clk 0:00:06]} 38. Kxd4 {[%clk
0:00:15.3]} 38... Rd2+ {[%clk 0:00:07.5]} 39. Nd3 {[%clk 0:00:16.9]} 39... Rxd3+
{[%clk 0:00:08.3]} 40. Kc5 {[%clk 0:00:18.5]} 40... Qxh1 {[%clk 0:00:07.3]} 41.
Qe8+ {[%clk 0:00:20]} 41... Kg7 {[%clk 0:00:08.4]} 42. Qe7+ {[%clk 0:00:21.2]}
42... Kh6 {[%clk 0:00:09.9]} 43. Qf8+ {[%clk 0:00:22.8]} 43... Kh5 {[%clk
0:00:10.3]} 44. Qg7 {[%clk 0:00:23.2]} 44... Qg1+ {[%clk 0:00:10.5]} 45. Kb4
{[%clk 0:00:19]} 45... Qb6+ {[%clk 0:00:11.7]} 46. Ka4 {[%clk 0:00:20.7]} 46...
Qa6+ {[%clk 0:00:12.3]} 47. Kb4 {[%clk 0:00:22.2]} 47... Qb6+ {[%clk 0:00:13.3]}
48. Ka3 {[%clk 0:00:23]} 48... Qa5+ {[%clk 0:00:13.5]} 49. Kb2 {[%clk
0:00:24.6]} 49... Qd2+ {[%clk 0:00:13.1]} 50. Ka3 {[%clk 0:00:25.6]} 50... Rd7
{[%clk 0:00:13.9]} 51. Qe5+ {[%clk 0:00:25.6]} 51... Kh6 {[%clk 0:00:14.6]} 52.
Qf6 {[%clk 0:00:20]} 52... Qd6+ {[%clk 0:00:14.5]} 0-1

[Event "*** Titled Tuesday 3|2 Blitz"]
[Site "Chess.com"]
[Date "2015.02.24"]
[Round "2"]
[White "gawk"]
[Black "FabianEnglert"]
[Result "1/2-1/2"]
[WhiteElo "2052"]
[BlackElo "2232"]
[TimeControl "180+2"]
[EndTime "11:24:44 PST"]
[Termination "Game drawn by agreement"]

1. c4 {[%clk 0:02:49]} 1... e6 {[%clk 0:02:57.8]} 2. g3 {[%clk 0:02:49.8]} 2...
d5 {[%clk 0:02:58.7]} 3. Bg2 {[%clk 0:02:51.4]} 3... d4 {[%clk 0:02:59.1]} 4.
Nf3 {[%clk 0:02:52.2]} 4... Nc6 {[%clk 0:03:00.3]} 5. O-O {[%clk 0:02:53.1]}
5... Nf6 {[%clk 0:03:01.2]} 6. e3 {[%clk 0:02:53.1]} 6... Be7 {[%clk 0:03:02.3]}
7. exd4 {[%clk 0:02:52.2]} 7... Nxd4 {[%clk 0:03:04.2]} 8. Nxd4 {[%clk
0:02:50.6]} 8... Qxd4 {[%clk 0:03:06.1]} 9. d3 {[%clk 0:02:50.9]} 9... e5 {[%clk
0:03:03.9]} 10. Nc3 {[%clk 0:02:51.5]} 10... c6 {[%clk 0:03:04.9]} 11. Be3
{[%clk 0:02:49.9]} 11... Qd8 {[%clk 0:03:06.4]} 12. h3 {[%clk 0:02:47.1]} 12...
O-O {[%clk 0:03:06.4]} 13. Rb1 {[%clk 0:02:48]} 13... a5 {[%clk 0:03:05]} 14. a3
{[%clk 0:02:38.5]} 14... Be6 {[%clk 0:03:04.7]} 15. b4 {[%clk 0:02:38.3]} 15...
axb4 {[%clk 0:03:05.8]} 16. axb4 {[%clk 0:02:39.2]} 16... Ra3 {[%clk 0:03:01.9]}
17. Qc2 {[%clk 0:02:39.5]} 17... Qd7 {[%clk 0:02:56.9]} 18. Kh2 {[%clk
0:02:39.8]} 18... h5 {[%clk 0:02:43.4]} 19. Ne4 {[%clk 0:02:31.2]} 19... Qxd3
{[%clk 0:02:33]} 20. Qxd3 {[%clk 0:02:23.3]} 20... Rxd3 {[%clk 0:02:34.9]} 21.
Rfc1 {[%clk 0:02:21.3]} 21... Bf5 {[%clk 0:02:21.6]} 22. Nxf6+ {[%clk
0:02:18.6]} 22... Bxf6 {[%clk 0:02:19.3]} 23. Ra1 {[%clk 0:02:20]} 23... h4
{[%clk 0:01:40.2]} 24. g4 {[%clk 0:02:18.1]} 24... Be6 {[%clk 0:01:34.7]} 25.
Ra7 {[%clk 0:02:18.1]} 25... b5 {[%clk 0:01:32.5]} 26. cxb5 {[%clk 0:02:01.1]}
26... cxb5 {[%clk 0:01:34.4]} 27. g5 {[%clk 0:02:02.2]} 27... Rxe3 {[%clk
0:01:20.8]} 28. fxe3 {[%clk 0:01:59.8]} 28... Bxg5 {[%clk 0:01:22.2]} 29. Rc3
{[%clk 0:01:48.1]} 29... Bc4 {[%clk 0:01:21.5]} 30. Rd7 {[%clk 0:01:38.9]} 30...
Kh7 {[%clk 0:01:00.3]} 31. Bd5 {[%clk 0:01:39.6]} 31... Rc8 {[%clk 0:00:31.8]}
32. Bxf7 {[%clk 0:01:30.5]} 32... Bxf7 {[%clk 0:00:26.8]} 33. Rxc8 {[%clk
0:01:30.4]} 33... Be6 {[%clk 0:00:28]} 34. Rdc7 {[%clk 0:01:18.3]} 34... Bxc8
{[%clk 0:00:25.3]} 35. Rxc8 {[%clk 0:01:19.6]} 35... Bxe3 {[%clk 0:00:26.6]} 36.
Rb8 {[%clk 0:01:21.2]} 36... Kg6 {[%clk 0:00:24.8]} 37. Kg2 {[%clk 0:01:21.9]}
37... Kf5 {[%clk 0:00:24.7]} 38. Kf3 {[%clk 0:01:23.2]} 38... Bd2 {[%clk
0:00:20]} 39. Rxb5 {[%clk 0:01:23.8]} 39... g5 {[%clk 0:00:21]} 40. Rb8 {[%clk
0:01:18.8]} 40... e4+ {[%clk 0:00:21.2]} 41. Ke2 {[%clk 0:01:20.1]} 41... Bf4
{[%clk 0:00:21.8]} 42. Rb5+ {[%clk 0:01:19.7]} 42... Ke6 {[%clk 0:00:20.8]} 43.
Rc5 {[%clk 0:01:19.6]} 43... Bd6 {[%clk 0:00:21.3]} 44. Rxg5 {[%clk 0:01:18.4]}
44... Bxb4 {[%clk 0:00:22.2]} 45. Rh5 {[%clk 0:01:19.3]} 45... Be7 {[%clk
0:00:23.4]} 46. Ke3 {[%clk 0:01:20.3]} 46... Kf7 {[%clk 0:00:24]} 47. Kxe4
{[%clk 0:01:21.5]} 47... Kg6 {[%clk 0:00:25.6]} 48. Rf5 {[%clk 0:01:20.9]} 48...
Bd6 {[%clk 0:00:26.6]} 49. Rd5 {[%clk 0:01:19.8]} 49... Bg3 {[%clk 0:00:28.5]}
50. Kf3 {[%clk 0:01:20.2]} 50... Kf6 {[%clk 0:00:30.4]} 51. Kg4 {[%clk
0:01:21.5]} 51... Ke6 {[%clk 0:00:31.7]} 52. Rf5 {[%clk 0:01:22.9]} 52... Ke7
{[%clk 0:00:32.6]} 53. Kf3 {[%clk 0:01:23.6]} 53... Ke6 {[%clk 0:00:34.5]} 54.
Ke4 {[%clk 0:01:25.5]} 54... Ke7 {[%clk 0:00:36]} 55. Kd5 {[%clk 0:01:26.7]}
55... Kd7 {[%clk 0:00:34.6]} 56. Rf6 {[%clk 0:01:27]} 56... Ke7 {[%clk
0:00:35.7]} 57. Rf5 {[%clk 0:01:26.3]} 57... Kd7 {[%clk 0:00:36.1]} 58. Kd4
{[%clk 0:01:26.5]} 58... Ke6 {[%clk 0:00:37.2]} 59. Ke4 {[%clk 0:01:28]} 59...
Be1 {[%clk 0:00:37]} 60. Rb5 {[%clk 0:01:25.8]} 60... Bf2 {[%clk 0:00:37.3]} 61.
Ra5 {[%clk 0:01:26.7]} 61... Kf6 {[%clk 0:00:37.6]} 62. Kf4 {[%clk 0:01:25.1]}
62... Bg3+ {[%clk 0:00:38.1]} 63. Kg4 {[%clk 0:01:25.8]} 63... Ke6 {[%clk
0:00:39.6]} 64. Rh5 {[%clk 0:01:23.7]} 64... Kf6 {[%clk 0:00:40.6]} 65. Rh6+
{[%clk 0:01:23.8]} 65... Kg7 {[%clk 0:00:41.1]} 66. Ra6 {[%clk 0:01:24.3]} 66...
Kf7 {[%clk 0:00:41.7]} 67. Kg5 {[%clk 0:01:24.5]} 67... Ke7 {[%clk 0:00:43.3]}
68. Kg6 {[%clk 0:01:23.1]} 68... Bf2 {[%clk 0:00:42.5]} 69. Kf5 {[%clk
0:01:18.8]} 69... Bg3 {[%clk 0:00:42.7]} 70. Ra7+ {[%clk 0:01:18.5]} 70... Kd6
{[%clk 0:00:43.5]} 1/2-1/2

[Event "*** Titled Tuesday 3|2 Blitz"]
[Site "Chess.com"]
[Date "2015.02.24"]
[Round "2"]
[White "Rogue_King"]
[Black "Carolina-moon"]
[Result "1-0"]
[WhiteElo "2013"]
[BlackElo "1936"]
[TimeControl "180+2"]
[EndTime "11:25:02 PST"]
[Termination "Rogue_King won by resignation"]

1. d4 {[%clk 0:03:00]} 1... f5 {[%clk 0:02:58.7]} 2. Nf3 {[%clk 0:02:58.8]} 2...
Nf6 {[%clk 0:02:59.8]} 3. Bg5 {[%clk 0:02:59.5]} 3... g6 {[%clk 0:02:58.4]} 4.
h4 {[%clk 0:02:58]} 4... Bg7 {[%clk 0:02:57.1]} 5. h5 {[%clk 0:02:55]} 5... gxh5
{[%clk 0:02:51.8]} 6. Ne5 {[%clk 0:02:50.8]} 6... d6 {[%clk 0:02:47.4]} 7. Nd3
{[%clk 0:02:28.8]} 7... Nc6 {[%clk 0:02:34.7]} 8. e3 {[%clk 0:02:28.2]} 8... Be6
{[%clk 0:02:13.3]} 9. Nf4 {[%clk 0:02:05.1]} 9... Bf7 {[%clk 0:02:14.1]} 10.
Bxf6 {[%clk 0:02:05.4]} 10... Bxf6 {[%clk 0:02:12.5]} 11. Nxh5 {[%clk
0:02:06.2]} 11... Qd7 {[%clk 0:02:08]} 12. Bb5 {[%clk 0:01:58.4]} 12... a6
{[%clk 0:02:04.8]} 13. Ba4 {[%clk 0:01:58.8]} 13... b5 {[%clk 0:02:03.2]} 14.
Bb3 {[%clk 0:01:58.6]} 14... Bxh5 {[%clk 0:01:45.9]} 15. Qxh5+ {[%clk
0:01:57.2]} 15... Kd8 {[%clk 0:01:47.3]} 16. Qf7 {[%clk 0:01:47.3]} 16... Qe8
{[%clk 0:01:15.8]} 17. Rxh7 {[%clk 0:01:34.3]} 17... Qxf7 {[%clk 0:01:11.7]} 18.
Rxh8+ {[%clk 0:01:35.1]} 18... Qe8 {[%clk 0:01:10]} 19. Rxe8+ {[%clk 0:01:34.6]}
19... Kxe8 {[%clk 0:01:11.6]} 20. Bd5 {[%clk 0:01:35.3]} 20... Kd7 {[%clk
0:01:11.6]} 21. Nd2 {[%clk 0:01:26.5]} 21... Rh8 {[%clk 0:01:12.3]} 22. Ke2
{[%clk 0:01:26.3]} 22... Nb4 {[%clk 0:01:02.2]} 23. Bb3 {[%clk 0:01:24.9]} 23...
c5 {[%clk 0:01:00.2]} 24. c3 {[%clk 0:01:26.1]} 24... Nc6 {[%clk 0:00:59.2]} 25.
Bd5 {[%clk 0:01:22.6]} 25... Nd8 {[%clk 0:00:55.6]} 26. dxc5 {[%clk 0:01:17.9]}
26... dxc5 {[%clk 0:00:57]} 27. Nb3 {[%clk 0:01:18]} 27... e6 {[%clk 0:00:53.1]}
28. Bf3 {[%clk 0:00:59.8]} 28... Be7 {[%clk 0:00:45.2]} 29. a4 {[%clk
0:00:33.8]} 29... b4 {[%clk 0:00:33.2]} 30. c4 {[%clk 0:00:35]} 30... Nf7 {[%clk
0:00:23]} 31. Rd1+ {[%clk 0:00:33.1]} 31... Kc7 {[%clk 0:00:24]} 32. Na5 {[%clk
0:00:26.9]} 32... Ne5 {[%clk 0:00:24]} 33. b3 {[%clk 0:00:20.8]} 33... Kb6
{[%clk 0:00:21.6]} 34. Nc6 {[%clk 0:00:16.9]} 34... Nxf3 {[%clk 0:00:22]} 35.
Nxe7 {[%clk 0:00:17.5]} 35... Ne5 {[%clk 0:00:20.3]} 36. f4 {[%clk 0:00:18.7]}
36... Ng4 {[%clk 0:00:21]} 37. Ng6 {[%clk 0:00:19.7]} 37... Rh2 {[%clk
0:00:21.8]} 38. Kf3 {[%clk 0:00:20.5]} 38... Rh6 {[%clk 0:00:19.4]} 39. Rd6+
{[%clk 0:00:21.6]} 39... Kb7 {[%clk 0:00:16.7]} 40. Rxe6 {[%clk 0:00:23.5]}
40... Rh1 {[%clk 0:00:16.7]} 41. Re7+ {[%clk 0:00:23.8]} 41... Kc8 {[%clk
0:00:15.4]} 42. Ne5 {[%clk 0:00:24.2]} 42... Rf1+ {[%clk 0:00:16]} 43. Ke2
{[%clk 0:00:24.6]} 43... Rf2+ {[%clk 0:00:16.4]} 44. Kd3 {[%clk 0:00:25.8]}
44... Rxg2 {[%clk 0:00:17.7]} 45. Nxg4 {[%clk 0:00:26.6]} 45... fxg4 {[%clk
0:00:18.8]} 46. Rg7 {[%clk 0:00:27.7]} 46... g3 {[%clk 0:00:19.5]} 47. Ke4
{[%clk 0:00:28.3]} 47... Rg1 {[%clk 0:00:19.9]} 48. Kd5 {[%clk 0:00:29.6]} 48...
g2 {[%clk 0:00:19.8]} 49. Kc6 {[%clk 0:00:30.7]} 49... Kd8 {[%clk 0:00:20.5]}
50. Kxc5 {[%clk 0:00:32.1]} 50... Ke8 {[%clk 0:00:17.1]} 51. Kxb4 {[%clk
0:00:33.3]} 51... Kf8 {[%clk 0:00:18.2]} 52. Rg5 {[%clk 0:00:34.5]} 52... Kf7
{[%clk 0:00:19.4]} 53. e4 {[%clk 0:00:35.8]} 53... Kf6 {[%clk 0:00:20]} 54. e5+
{[%clk 0:00:37.2]} 54... Kf7 {[%clk 0:00:21.4]} 55. c5 {[%clk 0:00:38.6]} 55...
Ke6 {[%clk 0:00:21.1]} 56. c6 {[%clk 0:00:39.8]} 56... Kd5 {[%clk 0:00:20.7]}
57. c7 {[%clk 0:00:41]} 57... Rc1 {[%clk 0:00:21.7]} 58. Rxg2 {[%clk 0:00:42.2]}
58... Rxc7 {[%clk 0:00:23.1]} 59. Rg6 {[%clk 0:00:41.9]} 59... Rc5 {[%clk
0:00:18.9]} 60. Rxa6 {[%clk 0:00:42]} 60... Rc1 {[%clk 0:00:16.4]} 61. Rf6
{[%clk 0:00:43.9]} 61... Rc8 {[%clk 0:00:15.7]} 62. a5 {[%clk 0:00:43.1]} 62...
Rb8+ {[%clk 0:00:16.2]} 63. Ka4 {[%clk 0:00:44.1]} 63... Kc5 {[%clk 0:00:16]}
64. e6 {[%clk 0:00:44.6]} 64... Kd6 {[%clk 0:00:16.5]} 65. f5 {[%clk 0:00:45.6]}
65... Ke7 {[%clk 0:00:15.9]} 66. Rf7+ {[%clk 0:00:46.8]} 66... Ke8 {[%clk
0:00:16.6]} 67. a6 {[%clk 0:00:48]} 67... Ra8 {[%clk 0:00:17.4]} 68. a7 {[%clk
0:00:49.2]} 68... Rc8 {[%clk 0:00:16.4]} 69. b4 {[%clk 0:00:49.6]} 69... Rd8
{[%clk 0:00:15.2]} 70. b5 {[%clk 0:00:50.8]} 70... Rd4+ {[%clk 0:00:16.2]} 71.
Ka5 {[%clk 0:00:51.8]} 71... Rd8 {[%clk 0:00:16.7]} 72. b6 {[%clk 0:00:53.1]}
72... Rd5+ {[%clk 0:00:16.4]} 73. Ka6 {[%clk 0:00:54.4]} 73... Rd8 {[%clk
0:00:18.3]} 74. b7 {[%clk 0:00:55.4]} 74... Rd6+ {[%clk 0:00:19.4]} 75. Kb5
{[%clk 0:00:56.3]} 75... Rd5+ {[%clk 0:00:20.4]} 76. Kc4 {[%clk 0:00:57.5]}
76... Rd8 {[%clk 0:00:20.5]} 77. b8=Q {[%clk 0:00:56.8]} 1-0

[Event "*** Titled Tuesday 3|2 Blitz"]
[Site "Chess.com"]
[Date "2015.02.24"]
[Round "2"]
[White "lorcho"]
[Black "LuckyTiger"]
[Result "1/2-1/2"]
[WhiteElo "2375"]
[BlackElo "2530"]
[TimeControl "180+2"]
[EndTime "11:25:06 PST"]
[Termination "Game drawn by repetition"]

1. e4 {[%clk 0:03:00]} 1... e6 {[%clk 0:02:58.6]} 2. d4 {[%clk 0:02:56.9]} 2...
d5 {[%clk 0:03:00]} 3. Nd2 {[%clk 0:02:58.1]} 3... Nc6 {[%clk 0:02:59.6]} 4.
Ngf3 {[%clk 0:02:54.7]} 4... Nf6 {[%clk 0:03:00.4]} 5. e5 {[%clk 0:02:55.1]}
5... Nd7 {[%clk 0:03:01.8]} 6. c3 {[%clk 0:02:55.8]} 6... a5 {[%clk 0:02:48.3]}
7. Bd3 {[%clk 0:02:55.4]} 7... b6 {[%clk 0:02:49.1]} 8. Qe2 {[%clk 0:02:55.8]}
8... Ncb8 {[%clk 0:02:50.1]} 9. b3 {[%clk 0:02:55.4]} 9... Be7 {[%clk
0:02:07.1]} 10. h4 {[%clk 0:02:48.5]} 10... Ba6 {[%clk 0:02:05.4]} 11. c4 {[%clk
0:02:48.8]} 11... Nc6 {[%clk 0:01:57.3]} 12. a3 {[%clk 0:02:27.2]} 12... dxc4
{[%clk 0:01:33]} 13. bxc4 {[%clk 0:02:25.1]} 13... Nxd4 {[%clk 0:01:34.1]} 14.
Nxd4 {[%clk 0:02:23]} 14... Nc5 {[%clk 0:01:35.5]} 15. Bb2 {[%clk 0:01:44]}
15... Nxd3+ {[%clk 0:01:36.1]} 16. Qxd3 {[%clk 0:01:45.9]} 16... c5 {[%clk
0:01:37.7]} 17. Qg3 {[%clk 0:01:23.9]} 17... cxd4 {[%clk 0:01:26.2]} 18. Qxg7
{[%clk 0:01:24.5]} 18... Kd7 {[%clk 0:01:27.5]} 19. Qxf7 {[%clk 0:01:09.7]}
19... Qf8 {[%clk 0:01:06.1]} 20. Qxf8 {[%clk 0:01:09]} 20... Rhxf8 {[%clk
0:01:04]} 21. Bxd4 {[%clk 0:01:10.9]} 21... Kc7 {[%clk 0:01:02.5]} 22. g3 {[%clk
0:00:56]} 22... Rad8 {[%clk 0:01:00.9]} 23. Be3 {[%clk 0:00:57.1]} 23... a4
{[%clk 0:01:01.2]} 24. Ke2 {[%clk 0:00:41.8]} 24... b5 {[%clk 0:00:59]} 25. Rhc1
{[%clk 0:00:42.5]} 25... bxc4 {[%clk 0:00:47.2]} 26. Nxc4 {[%clk 0:00:44.4]}
26... Rb8 {[%clk 0:00:46.7]} 27. Ke1 {[%clk 0:00:42.3]} 27... Kd7 {[%clk
0:00:46]} 28. Nb6+ {[%clk 0:00:41.3]} 28... Ke8 {[%clk 0:00:47.3]} 29. Nxa4
{[%clk 0:00:38.7]} 29... Kf7 {[%clk 0:00:44.4]} 30. Nc5 {[%clk 0:00:37.1]} 30...
Bxc5 {[%clk 0:00:39.8]} 31. Rxc5 {[%clk 0:00:37.7]} 31... Rb2 {[%clk 0:00:39.2]}
32. Rc6 {[%clk 0:00:29.9]} 32... Ra8 {[%clk 0:00:34]} 33. Rd6 {[%clk 0:00:28]}
33... Bb5 {[%clk 0:00:32.5]} 34. Rd2 {[%clk 0:00:28.5]} 34... Rb3 {[%clk
0:00:33]} 35. Rda2 {[%clk 0:00:28.3]} 35... Ra4 {[%clk 0:00:32.7]} 36. Rc2
{[%clk 0:00:23.2]} 36... Kg6 {[%clk 0:00:32.8]} 37. Kd2 {[%clk 0:00:22]} 37...
Kf5 {[%clk 0:00:32.1]} 38. Rc3 {[%clk 0:00:23.1]} 38... Rb2+ {[%clk 0:00:32.7]}
39. Kc1 {[%clk 0:00:24.2]} 39... Re2 {[%clk 0:00:33]} 40. Rc2 {[%clk 0:00:16]}
40... Re1+ {[%clk 0:00:34.1]} 41. Kb2 {[%clk 0:00:17.6]} 41... Rxa1 {[%clk
0:00:36]} 42. Kxa1 {[%clk 0:00:19.5]} 42... Rxa3+ {[%clk 0:00:37.9]} 43. Kb2
{[%clk 0:00:20.8]} 43... Ra4 {[%clk 0:00:38.6]} 44. Bf4 {[%clk 0:00:19.9]} 44...
Bc4 {[%clk 0:00:40]} 45. Kc3 {[%clk 0:00:20.6]} 45... Bd5 {[%clk 0:00:38.5]} 46.
Kd2 {[%clk 0:00:21.8]} 46... Bf3 {[%clk 0:00:39]} 47. Ke3 {[%clk 0:00:21.6]}
47... Ra3+ {[%clk 0:00:38.6]} 48. Kd2 {[%clk 0:00:22.7]} 48... h5 {[%clk
0:00:37.9]} 49. Rc3 {[%clk 0:00:22.5]} 49... Ra2+ {[%clk 0:00:36.6]} 50. Ke3
{[%clk 0:00:23.5]} 50... Kg4 {[%clk 0:00:36.2]} 51. Rc8 {[%clk 0:00:15.8]} 51...
Ra3+ {[%clk 0:00:37.2]} 52. Kd4 {[%clk 0:00:16.3]} 52... Bd5 {[%clk 0:00:35.5]}
53. Rg8+ {[%clk 0:00:15.2]} 53... Kf3 {[%clk 0:00:36.7]} 54. Be3 {[%clk
0:00:16.4]} 54... Ra2 {[%clk 0:00:21.5]} 55. Rg5 {[%clk 0:00:15.5]} 55... Rc2
{[%clk 0:00:22.2]} 56. Kd3 {[%clk 0:00:09.3]} 56... Be4+ {[%clk 0:00:23.4]} 57.
Kd4 {[%clk 0:00:10.2]} 57... Bd5 {[%clk 0:00:24.9]} 58. Kd3 {[%clk 0:00:06.8]}
58... Be4+ {[%clk 0:00:24.6]} 59. Kd4 {[%clk 0:00:08.4]} 59... Bd5 {[%clk
0:00:23.8]} 60. Kd3 {[%clk 0:00:05.5]} 60... Be4+ {[%clk 0:00:17]} 61. Kd4
{[%clk 0:00:06.6]} 61... Bd5 {[%clk 0:00:17.8]} 62. Kd3 {[%clk 0:00:07.6]} 62...
Be4+ {[%clk 0:00:19.3]} 63. Kd4 {[%clk 0:00:09.1]} 63... Bd5 {[%clk 0:00:20.8]}
64. Kd3 {[%clk 0:00:10.6]} 64... Be4+ {[%clk 0:00:22.2]} 65. Kd4 {[%clk
0:00:12.2]} 1/2-1/2

[Event "*** Titled Tuesday 3|2 Blitz"]
[Site "Chess.com"]
[Date "2015.02.24"]
[Round "2"]
[White "Imre91"]
[Black "Chesseducation4u"]
[Result "1-0"]
[WhiteElo "2571"]
[BlackElo "2219"]
[TimeControl "180+2"]
[EndTime "11:25:41 PST"]
[Termination "Imre91 won on time"]

1. d4 {[%clk 0:03:00]} 1... Nf6 {[%clk 0:02:58.6]} 2. Bg5 {[%clk 0:02:58.9]}
2... Ne4 {[%clk 0:02:58]} 3. Bh4 {[%clk 0:02:59]} 3... c6 {[%clk 0:02:57]} 4.
Nd2 {[%clk 0:02:58.8]} 4... Qa5 {[%clk 0:02:57.7]} 5. c3 {[%clk 0:02:58.5]} 5...
Qh5 {[%clk 0:02:57.3]} 6. Ngf3 {[%clk 0:02:55.9]} 6... d5 {[%clk 0:02:56.1]} 7.
Qc2 {[%clk 0:02:46.6]} 7... g5 {[%clk 0:02:44.2]} 8. Bg3 {[%clk 0:02:44.9]} 8...
Nxg3 {[%clk 0:02:39.4]} 9. fxg3 {[%clk 0:02:45.7]} 9... Nd7 {[%clk 0:02:36.8]}
10. O-O-O {[%clk 0:02:45.1]} 10... Bh6 {[%clk 0:02:24.7]} 11. g4 {[%clk
0:02:38.1]} 11... Qxg4 {[%clk 0:02:22.3]} 12. e4 {[%clk 0:02:38.9]} 12... Qh5
{[%clk 0:02:14.6]} 13. exd5 {[%clk 0:02:31.5]} 13... cxd5 {[%clk 0:02:14.4]} 14.
Bb5 {[%clk 0:02:32.4]} 14... g4 {[%clk 0:01:12.3]} 15. Ne5 {[%clk 0:02:31.1]}
15... Bf4 {[%clk 0:01:06.8]} 16. Rhe1 {[%clk 0:02:30.3]} 16... a6 {[%clk
0:00:56.5]} 17. Bxd7+ {[%clk 0:02:25]} 17... Bxd7 {[%clk 0:00:58.4]} 18. Qb3
{[%clk 0:02:20.8]} 18... O-O-O {[%clk 0:00:50.7]} 19. Qxd5 {[%clk 0:02:15.6]}
19... Bxe5 {[%clk 0:00:41.5]} 20. Rxe5 {[%clk 0:02:13.6]} 20... Qxh2 {[%clk
0:00:39.5]} 21. Rxe7 {[%clk 0:02:14.2]} 21... Bc6 {[%clk 0:00:22.1]} 22. Qf5+
{[%clk 0:02:11.8]} 22... Kb8 {[%clk 0:00:21.5]} 23. Qxg4 {[%clk 0:02:13.1]}
23... Qxg2 {[%clk 0:00:21.9]} 24. Qf4+ {[%clk 0:02:12.1]} 24... Ka8 {[%clk
0:00:22.8]} 25. Rxf7 {[%clk 0:02:13.6]} 25... h5 {[%clk 0:00:21.9]} 26. c4
{[%clk 0:02:07.7]} 26... h4 {[%clk 0:00:21.2]} 27. d5 {[%clk 0:02:09]} 27...
Bxd5 {[%clk 0:00:19.6]} 28. cxd5 {[%clk 0:02:09.5]} 28... h3 {[%clk 0:00:21.5]}
29. Qf3 {[%clk 0:02:06.3]} 29... Rxd5 {[%clk 0:00:19.5]} 30. Qxg2 {[%clk
0:01:41.2]} 30... hxg2 {[%clk 0:00:20.3]} 31. Rg7 {[%clk 0:01:42.4]} 31... Rc5+
{[%clk 0:00:20.4]} 32. Nc4 {[%clk 0:01:38.6]} 32... Rxc4+ {[%clk 0:00:21.5]} 33.
Kd2 {[%clk 0:01:40.2]} 33... Rh2 {[%clk 0:00:21.8]} 34. Rg1 {[%clk 0:01:40.2]}
34... Ra4 {[%clk 0:00:20.1]} 35. a3 {[%clk 0:01:41]} 35... Rc4 {[%clk
0:00:20.9]} 36. Kd3 {[%clk 0:01:41.4]} 36... Rc6 {[%clk 0:00:21.6]} 37. R7xg2
{[%clk 0:01:43]} 37... Rxg2 {[%clk 0:00:22.7]} 38. Rxg2 {[%clk 0:01:44.9]} 38...
Ka7 {[%clk 0:00:24.1]} 39. Kd4 {[%clk 0:01:46.5]} 39... Kb6 {[%clk 0:00:25.4]}
40. Rg3 {[%clk 0:01:47]} 40... Rd6+ {[%clk 0:00:26.6]} 41. Kc4 {[%clk
0:01:47.8]} 41... Rc6+ {[%clk 0:00:28.5]} 42. Kd5 {[%clk 0:01:48.9]} 42... Rc5+
{[%clk 0:00:29]} 43. Kd4 {[%clk 0:01:50.1]} 43... Rc6 {[%clk 0:00:29.9]} 44.
Rb3+ {[%clk 0:01:50.7]} 44... Kc7 {[%clk 0:00:30.1]} 45. Kd5 {[%clk 0:01:52]}
45... Rd6+ {[%clk 0:00:28.1]} 46. Ke4 {[%clk 0:01:53]} 46... Rd2 {[%clk
0:00:28.8]} 47. Ke3 {[%clk 0:01:50.2]} 47... Rd5 {[%clk 0:00:24.2]} 48. Rb4
{[%clk 0:01:50.6]} 48... Kc6 {[%clk 0:00:25]} 49. Rg4 {[%clk 0:01:49.1]} 49...
Rd6 {[%clk 0:00:24.6]} 50. Rg5 {[%clk 0:01:45.9]} 50... Kb6 {[%clk 0:00:21]} 51.
a4 {[%clk 0:01:44.1]} 51... Kc6 {[%clk 0:00:19.5]} 52. b3 {[%clk 0:01:44]} 52...
Rd5 {[%clk 0:00:17.9]} 53. Rg7 {[%clk 0:01:39.4]} 53... Rd6 {[%clk 0:00:17.9]}
54. Rg4 {[%clk 0:01:37.8]} 54... Rd5 {[%clk 0:00:18.4]} 55. Rg8 {[%clk
0:01:30.4]} 55... Rd6 {[%clk 0:00:18.9]} 56. Rg7 {[%clk 0:01:25.2]} 56... Rd5
{[%clk 0:00:19.1]} 57. Ke4 {[%clk 0:01:26.6]} 57... Rd6 {[%clk 0:00:20.1]} 58.
Rh7 {[%clk 0:01:26.8]} 58... Rd1 {[%clk 0:00:19.3]} 59. Rh6+ {[%clk 0:01:22]}
59... Kc5 {[%clk 0:00:19.9]} 60. a5 {[%clk 0:01:22.7]} 60... Rd6 {[%clk
0:00:09.4]} 61. Rh7 {[%clk 0:01:09.6]} 61... Rd4+ {[%clk 0:00:08.5]} 62. Ke5
{[%clk 0:01:07.7]} 62... Rb4 {[%clk 0:00:07.8]} 63. Rc7+ {[%clk 0:01:08.4]}
63... Kb5 {[%clk 0:00:08.9]} 64. Rxb7+ {[%clk 0:01:09.9]} 64... Kxa5 {[%clk
0:00:10.1]} 65. Ra7 {[%clk 0:01:09.4]} 65... Rxb3 {[%clk 0:00:10.8]} 66. Kd4
{[%clk 0:01:11]} 66... Rb6 {[%clk 0:00:10.8]} 67. Kc5 {[%clk 0:01:10.5]} 67...
Rb1 {[%clk 0:00:00.3]} 68. Re7 {[%clk 0:01:10.7]} 1-0